bitfinex/quotes_ETHUSD_20240824
["timestamp","ask_amount","ask_price","bid_price","bid_amount"]
[1724462207660,2.2599,2756.4,2756.0,3.62844]
[1724462207805,2.2599,2756.4,2756.0,7.2568]
[1724462208240,2.2599,2756.4,2756.0,3.62836]
[1724462208806,2.2599,2756.4,2756.0,3.62835]
[1724462209010,2.2599,2756.4,2756.1,3.6283]
[1724462210011,12.21384009,2756.9,2756.2,3.62817]
[1724462210012,2.2599,2756.7,2756.2,3.62817]
[1724462210255,2.2599,2756.7,2756.4,3.62789]
[1724462210723,7.45,2756.9,2756.4,3.62789]
[1724462210724,9.7099,2756.9,2756.4,3.62789]
[1724462211147,9.7099,2756.9,2756.4,3.62784]
[1724462211516,7.45,2756.9,2756.5,2.2805]
[1724462211811,7.45,2756.9,2756.6,3.62757]
[1724462212563,2.2599,2756.8,2756.2,3.62805]
[1724462213228,2.2599,2756.8,2756.3,3.628]
[1724462214053,7.45,2756.9,2756.4,5.90835]
[1724462214253,7.45,2756.9,2756.4,3.62785]
[1724462214957,7.45,2756.9,2756.4,3.62783]
[1724462215519,7.45,2756.9,2756.5,3.62769]
[1724462215749,2.2599,2756.8,2756.4,3.62783]
[1724462216220,2.2599,2756.8,2756.4,7.25566]
[1724462216630,2.2599,2756.8,2756.5,3.62778]
[1724462222052,2.2599,2756.8,2756.4,3.62783]
[1724462223244,3.39642009,2756.8,2756.4,3.62783]
[1724462223457,2.2599,2756.8,2756.4,3.62783]
[1724462224578,1.13652009,2756.9,2756.6,3.62764]
[1724462224960,1.13652009,2756.9,2756.6,3.62758]
[1724462226254,1.13652009,2756.8,2756.6,3.62758]
[1724462227387,1.13652009,2756.8,2756.6,6.09418]
[1724462227590,1.13652009,2756.8,2756.7,0.609418]
[1724462228154,1.13652009,2756.8,2756.7,4.236938]
[1724462228695,1.13652009,2756.8,2756.7,0.609418]
[1724462228996,1.13652009,2756.8,2756.6,6.09418]
[1724462229159,1.13652009,2756.8,2756.4,0.95365]
[1724462229353,1.13652009,2756.8,2756.3,2.4666]
[1724462229759,1.13652009,2756.8,2756.5,3.62778]
[1724462230169,1.13652009,2756.8,2756.4,3.6279]
[1724462230703,1.13652009,2756.8,2756.4,3.62783]
[1724462231582,1.13652009,2756.8,2756.4,7.25566]
[1724462231757,1.13652009,2756.7,2756.4,3.62783]
[1724462232198,1.13652009,2756.7,2756.2,3.62812]
[1724462232495,3.48582009,2756.6,2756.2,3.62811]
[1724462234381,3.48582009,2756.6,2756.1,6.62828]
[1724462234717,3.48582009,2756.6,2756.2,3.62818]
[1724462234718,1.13652009,2756.5,2756.2,3.62818]
[1724462234923,1.13652009,2756.4,2756.2,3.62818]
[1724462237115,1.13652009,2756.4,2756.0,3.62836]
[1724462237437,1.13652009,2756.4,2756.0,3.62835]
[1724462238685,1.13652009,2756.4,2756.1,3.62828]
[1724462239892,1.13652009,2756.4,2756.2,3.62817]
[1724462240939,1.13652009,2756.4,2756.3,3.62805]
[1724462241308,1.13652009,2756.6,2756.3,3.62805]
[1724462241439,1.13652009,2756.6,2756.5,3.62778]
[1724462242001,1.13652009,2756.6,2756.3,3.62805]
[1724462242203,1.13652009,2756.5,2756.3,3.62795]
[1724462242407,1.13652009,2756.5,2756.4,3.62789]
[1724462242942,1.13652009,2756.5,2756.3,3.62795]
[1724462243701,1.13652009,2756.5,2756.3,7.25591]
[1724462243898,1.13652009,2756.5,2756.3,3.62795]
[1724462244254,1.13652009,2756.5,2756.3,7.25592]
[1724462244776,1.13652009,2756.5,2756.3,3.62795]
[1724462246650,1.50598088,2756.6,2756.1,3.62825]
[1724462246651,3.49592009,2756.4,2756.1,3.62825]
[1724462246796,2.3594,2756.4,2756.1,3.62825]
[1724462246996,2.3594,2756.4,2756.1,3.991075]
[1724462247197,1.13652009,2756.5,2756.1,3.991075]
[1724462248231,1.13652009,2756.4,2756.1,3.991075]
[1724462248774,1.13652009,2756.4,2755.8,6.62861]
[1724462248921,1.13652009,2756.4,2756.0,3.62835]
[1724462249440,1.13652009,2756.4,2756.0,7.25672]
[1724462250029,1.13652009,2756.4,2756.0,3.62835]
[1724462251329,1.13652009,2756.4,2756.0,7.25671]
[1724462252326,1.13652009,2756.4,2756.0,3.62835]
[1724462252863,1.13652009,2756.3,2756.0,3.62835]
[1724462253013,2.3594,2756.2,2756.0,3.62835]
[1724462256776,1.13652009,2756.3,2756.0,3.62835]
[1724462258822,1.13652009,2756.3,2756.0,7.25671]
[1724462259773,1.13652009,2756.4,2756.0,5.97705]
[1724462259924,1.13652009,2756.4,2756.2,3.62817]
[1724462260496,1.13652009,2756.4,2756.3,3.62805]
[1724462260779,1.13652009,2756.5,2756.3,3.62805]
[1724462260926,1.13652009,2756.5,2756.4,5.97662]
[1724462261121,1.13652009,2756.5,2756.4,6.937087]
[1724462261379,1.13652009,2756.5,2756.4,5.97662]
[1724462263030,1.13652009,2756.5,2756.4,3.62792]
[1724462264336,1.50598088,2756.6,2756.4,3.62792]
[1724462264586,1.14098408,2756.5,2756.4,3.62792]
[1724462265936,1.14098408,2756.5,2756.2,5.97677]
[1724462266137,1.14098408,2756.5,2756.3,3.62804]
[1724462272033,1.50598088,2756.5,2756.0,3.62841]
[1724462272232,1.14104072,2756.3,2756.0,3.62841]
[1724462273020,2.6470216,2756.4,2756.0,3.62841]
[1724462273334,1.14104072,2756.4,2756.0,3.62841]
[1724462273478,1.14104072,2756.3,2756.0,3.62841]
[1724462274187,1.14104072,2756.4,2756.0,3.62841]
[1724462275203,1.14104072,2756.3,2756.0,3.62841]
[1724462275905,1.14104072,2756.3,2756.0,3.62837]
[1724462280295,1.14104072,2756.3,2756.0,4.526077]
[1724462280490,1.14104072,2756.3,2756.1,3.62822]
[1724462280695,1.14104072,2756.3,2756.2,2.3748]
[1724462281461,1.14104072,2756.3,2756.1,3.62822]
[1724462287564,1.14104072,2756.3,2755.9,1.89178191]
[1724462287903,1.50598088,2756.0,2755.8,3.62863]
[1724462288063,1.50598088,2756.1,2755.9,3.62857]
[1724462288646,1.50598088,2756.1,2755.8,3.62863]
[1724462288647,1.50598088,2756.0,2755.8,3.62863]
[1724462288994,1.90356214,2756.2,2755.8,3.62863]
[1724462288995,1.14168966,2755.9,2755.8,3.62862]
[1724462289142,1.14168966,2756.0,2755.8,3.62862]
[1724462289999,1.14168966,2755.9,2755.8,3.62862]
[1724462290294,1.14168966,2756.0,2755.8,3.62862]
[1724462293382,1.14168966,2756.0,2755.6,9.56817]
[1724462293694,1.14168966,2756.0,2755.7,3.62876]
[1724462294193,1.14168966,2756.1,2755.7,3.62876]
[1724462295347,1.14168966,2756.1,2756.0,5.93884]
[1724462295598,1.50598088,2756.2,2756.1,3.62831]
[1724462295599,1.14168966,2756.2,2756.1,3.62831]
[1724462295800,1.14168966,2756.4,2756.1,3.62831]
[1724462300379,1.14168966,2756.4,2756.2,3.62818]
[1724462300574,1.14168966,2756.6,2756.4,3.62792]
[1724462300891,1.50598088,2756.7,2756.4,3.62792]
[1724462300892,1.14168966,2756.7,2756.4,3.62792]
[1724462301060,1.14168966,2756.7,2756.4,7.25567]
[1724462301265,8.59168966,2756.8,2756.4,3.62783]
[1724462301575,1.14168966,2756.8,2756.5,3.62778]
[1724462302111,1.14168966,2756.9,2756.6,2.3646]
[1724462302273,1.14168966,2757.0,2756.8,3.62739]
[1724462302458,1.14168966,2757.0,2756.6,5.99225]
[1724462302664,1.14168966,2757.0,2756.6,9.61982]
[1724462303159,1.14168966,2757.0,2756.6,5.99217]
[1724462304024,2.4577,2756.9,2756.4,3.62779]
[1724462304325,1.14168966,2756.8,2756.4,3.62779]
[1724462304526,4.76909966,2756.8,2756.2,5.99276]
[1724462304690,1.14168966,2756.7,2756.3,3.0]
[1724462305514,4.76909966,2756.8,2756.3,3.0]
[1724462305980,4.76909966,2756.8,2756.3,6.62799]
[1724462306179,1.14168966,2756.8,2756.3,6.62799]
[1724462306423,1.14168966,2756.7,2756.3,3.62799]
[1724462306822,2.4577,2756.6,2756.2,3.62809]
[1724462307960,2.4577,2756.6,2756.0,5.99293]
[1724462308167,2.4577,2756.3,2755.7,2.3646]
[1724462308308,3.59938966,2756.3,2755.9,3.62854]
[1724462308516,1.14168966,2756.2,2755.9,3.62854]
[1724462309615,3.59938966,2756.3,2755.9,3.62854]
[1724462309814,1.14168966,2756.2,2755.9,3.62854]
[1724462310559,1.14168966,2756.2,2756.0,3.62843]
[1724462310743,1.14168966,2756.3,2755.9,3.62854]
[1724462310944,1.14168966,2756.2,2755.9,3.62854]
[1724462311927,1.14168966,2756.2,2755.9,7.25703]
[1724462312123,1.14168966,2756.2,2755.9,7.25697]
[1724462312374,1.14168966,2756.3,2755.9,7.25697]
[1724462313553,1.14168966,2756.3,2755.9,3.62848]
[1724462314567,1.14168966,2756.3,2756.0,3.62842]
[1724462314762,1.14168966,2756.3,2756.1,2.3646]
[1724462315391,1.14168966,2756.4,2756.1,2.3646]
[1724462315757,1.14168966,2756.4,2756.1,5.99291]
[1724462316135,1.14168966,2756.4,2756.1,5.99283]
[1724462316787,1.14168966,2756.4,2756.1,3.62823]
[1724462316938,1.14168966,2756.3,2755.9,9.62159]
[1724462317145,1.14168966,2756.4,2755.9,5.99309]
[1724462317345,1.14168966,2756.3,2755.9,5.99309]
[1724462317846,1.14168966,2756.3,2756.0,3.62843]
[1724462319286,1.14168966,2756.4,2756.0,3.62843]
[1724462319865,1.14168966,2756.3,2756.0,3.62843]
[1724462321148,1.76923571,2756.3,2756.0,3.62843]
[1724462321502,3.62818,2756.2,2755.7,2.4563]
[1724462321944,5.39738571,2756.3,2755.7,6.08512]
[1724462322144,3.62819,2756.2,2755.7,6.08512]
[1724462322442,4.76987966,2756.2,2755.7,3.62882]
[1724462322682,1.14168966,2756.1,2755.7,3.62882]
[1724462322845,2.42911532,2756.2,2755.7,3.62882]
[1724462323047,1.14168966,2756.1,2755.7,3.62882]
[1724462323311,4.76986966,2756.2,2755.7,3.62882]
[1724462323453,6.05729432,2756.2,2755.5,9.08529]
[1724462323647,4.76986966,2756.2,2755.5,9.08529]
[1724462323961,4.76986966,2756.2,2755.7,3.62884]
[1724462324870,1.14168966,2756.2,2755.7,3.62884]
[1724462326651,2.4502,2756.1,2755.7,3.62884]
[1724462327147,6.07852,2756.1,2755.3,6.08119]
[1724462327394,1.86370463,2756.0,2755.4,3.62914]
[1724462327602,1.14168966,2755.9,2755.4,3.62914]
[1724462328100,1.14168966,2755.9,2755.5,3.62909]
[1724462328285,0.78737749,2755.9,2755.3,3.62928]
[1724462328466,3.59188966,2755.8,2755.3,3.62928]
[1724462329100,2.4502,2755.6,2755.2,7.44]
[1724462329309,1.14168966,2755.5,2755.0,3.62976]
[1724462329466,1.14168966,2755.5,2754.9,13.52171]
[1724462329467,1.14168966,2755.5,2755.1,3.62962]
[1724462329954,1.14168966,2755.5,2754.9,17.1515]
[1724462330154,2.20436641,2755.5,2754.9,13.52169]
[1724462330373,1.14168966,2755.4,2754.9,13.52169]
[1724462330550,1.06267675,2755.5,2754.9,13.52169]
[1724462330551,2.20436641,2755.5,2754.9,13.52169]
[1724462330798,4.77130966,2755.2,2754.3,3.63062]
[1724462331106,3.59188966,2755.1,2754.0,2.4519]
[1724462331311,3.62986,2755.0,2754.2,3.63076]
[1724462331459,3.62986,2755.0,2754.3,3.63065]
[1724462331460,4.77154966,2755.0,2754.3,3.63065]
[1724462331802,4.77154966,2755.0,2754.4,3.63055]
[1724462332307,3.62986,2755.0,2754.4,3.63055]
[1724462333202,4.77105966,2755.3,2754.7,3.63008]
[1724462333412,0.87272405,2755.2,2754.7,3.63008]
[1724462333607,3.59188966,2755.4,2754.7,3.63008]
[1724462333806,7.22112966,2755.4,2754.6,3.63017]
[1724462334114,4.77121966,2755.2,2754.3,2.4519]
[1724462334409,2.4502,2755.1,2754.2,3.63072]
[1724462334607,3.63014,2754.8,2754.0,3.63104]
[1724462334757,3.63037,2754.6,2754.0,3.63104]
[1724462335161,3.63037,2754.6,2753.9,3.63119]
[1724462335606,3.63037,2754.6,2754.0,3.63104]
[1724462336687,3.63043,2754.5,2753.8,3.63132]
[1724462336874,2.4502,2754.4,2753.9,3.0]
[1724462337058,3.4213,2754.4,2753.9,3.0]
[1724462337560,3.4213,2754.4,2753.9,6.6312]
[1724462337761,3.4213,2754.4,2753.9,3.0]
[1724462339225,3.4213,2754.4,2753.9,6.63121]
[1724462339922,3.4213,2754.4,2753.9,3.63121]
[1724462340224,0.705173,2754.3,2753.9,3.63121]
[1724462340769,2.4502,2754.4,2754.0,3.63106]
[1724462341030,6.271674,2754.7,2754.0,3.63106]
[1724462341846,6.271674,2754.7,2754.1,3.63084]
[1724462342136,6.271674,2754.7,2754.2,3.63081]
[1724462342335,2.641514,2754.7,2754.2,3.63081]
[1724462344193,6.271674,2754.7,2754.0,3.63098]
[1724462344429,6.271674,2754.7,2754.0,3.63097]
[1724462344593,6.271674,2754.7,2754.1,3.63094]
[1724462344788,0.6271674,2754.6,2754.1,3.63094]
[1724462346503,4.2574574,2754.6,2754.1,3.63094]
[1724462347158,0.6271674,2754.6,2753.8,3.63128]
[1724462347305,2.2785,2754.2,2753.6,6.63151]
[1724462347654,2.2785,2754.2,2753.7,3.63144]
[1724462347857,2.2785,2754.2,2753.7,3.58144]
[1724462348350,3.63045,2754.5,2753.8,6.07236]
[1724462348351,2.2785,2754.4,2753.8,6.07236]
[1724462348507,2.2785,2754.6,2754.1,3.63093]
[1724462348711,5.90883,2754.6,2753.9,3.63109]
[1724462349126,5.90883,2754.6,2753.9,7.26218]
[1724462349525,5.90883,2754.6,2753.9,7.26221]
[1724462349727,6.862737,2754.6,2753.9,7.26221]
[1724462350356,6.862737,2754.6,2753.9,3.63109]
[1724462350507,3.63063,2754.4,2753.8,3.63129]
[1724462350852,2.2785,2754.4,2753.7,3.63141]
[1724462351218,3.63073,2754.3,2753.7,3.63141]
[1724462351557,0.953907,2754.6,2753.5,3.63163]
[1724462351558,2.2785,2754.1,2753.5,3.63163]
[1724462351853,3.63111,2754.0,2753.3,7.26382]
[1724462352026,3.63111,2754.0,2753.3,3.6319]
[1724462352228,3.62970131,2754.0,2753.3,3.6319]
[1724462352438,3.62970131,2754.0,2753.3,7.26382]
[1724462352638,2.2785,2753.8,2753.3,7.26381]
[1724462353137,2.2785,2753.8,2753.4,3.63184]
[1724462354270,2.2785,2753.8,2753.3,3.6319]
[1724462354414,2.2785,2753.8,2753.1,6.07327]
[1724462354415,3.63148,2753.7,2753.1,6.07327]
[1724462354614,4.2179814,2753.7,2753.1,6.07327]
[1724462355114,3.63198,2753.4,2752.7,3.63273]
[1724462356112,5.91016,2753.6,2752.7,3.63273]
[1724462356319,5.91016,2753.6,2752.9,3.63252]
[1724462356553,1.01281814,2753.5,2752.9,6.07362]
[1724462358815,3.63188,2753.4,2752.9,2.4411]
[1724462359011,3.63188,2753.4,2752.8,3.63257]
[1724462359186,1.01281814,2753.5,2752.9,3.63252]
[1724462359383,1.01281814,2753.5,2753.0,3.63238]
[1724462359584,1.01281814,2753.5,2752.9,3.63252]
[1724462360471,1.01281814,2753.5,2752.9,3.63242]
[1724462360703,2.2514,2753.9,2753.3,3.63191]
[1724462361333,2.2514,2753.9,2753.1,5.95446]
[1724462361334,3.63136,2753.8,2753.1,5.95446]
[1724462361537,3.63136,2753.8,2753.1,9.58662]
[1724462361885,3.63136,2753.8,2753.1,5.95446]
[1724462362117,4.582749,2753.8,2753.2,3.63211]
[1724462362433,2.2514,2753.9,2753.4,3.63176]
[1724462362645,3.63113,2754.0,2753.4,3.63176]
[1724462362937,3.63113,2754.0,2752.9,0.595472]
[1724462362938,5.88224,2754.2,2753.6,3.6316]
[1724462363150,2.2514,2754.3,2753.7,3.63146]
[1724462363318,0.588201,2754.2,2753.7,3.63146]
[1724462363501,4.219021,2754.2,2753.5,5.95395]
[1724462364030,0.588201,2754.2,2753.3,5.95425]
[1724462364247,3.63101,2754.1,2753.5,3.63171]
[1724462365200,3.63101,2754.1,2753.5,3.63164]
[1724462366304,3.63101,2754.1,2753.6,3.6316]
[1724462366612,3.63101,2754.1,2753.5,3.63164]
[1724462367211,3.63109,2754.0,2753.3,5.95422]
[1724462367413,4.3573,2754.0,2753.3,5.95422]
[1724462367656,4.3573,2754.0,2753.3,9.58613]
[1724462367807,4.3573,2754.0,2753.3,5.95421]
[1724462368007,2.2514,2753.9,2753.3,5.95421]
[1724462368206,3.63143,2753.8,2753.1,5.95454]
[1724462368455,4.655458,2753.8,2753.2,3.63211]
[1724462369374,4.655458,2753.8,2753.1,9.58666]
[1724462369570,5.88308,2753.6,2752.9,8.95475]
[1724462369854,3.275428,2753.8,2753.2,3.63212]
[1724462371159,1.024028,2753.8,2753.4,3.63187]
[1724462371359,2.97761,2754.0,2753.4,3.63187]
[1724462371951,2.97761,2754.0,2753.4,7.26364]
[1724462372364,3.63123,2753.9,2753.3,3.63197]
[1724462372541,7.26256,2753.9,2753.3,3.63197]
[1724462372747,3.63123,2753.9,2753.3,3.63197]
[1724462372922,0.660884,2753.8,2753.3,3.63197]
[1724462373324,0.660884,2753.8,2753.2,3.63212]
[1724462373956,4.292234,2753.8,2753.2,3.63212]
[1724462376465,0.660884,2753.8,2753.3,3.63196]
[1724462376975,2.97761,2754.0,2753.4,5.95416]
[1724462377323,2.97761,2754.0,2753.4,9.58602]
[1724462378154,2.97761,2754.0,2753.5,3.6317]
[1724462378553,2.97761,2754.0,2752.9,3.0]
[1724462378554,5.97431,2753.9,2753.3,3.63192]
[1724462378729,5.97431,2753.9,2753.2,3.63204]
[1724462378925,5.97431,2753.9,2753.4,3.63184]
[1724462379124,0.72621,2754.0,2753.5,3.63171]
[1724462379783,0.72621,2754.0,2753.4,3.63175]
[1724462379983,5.49903966,2754.0,2753.4,3.63175]
[1724462380487,5.49903966,2754.0,2753.3,2.4273]
[1724462380488,3.63125,2753.9,2753.3,2.4273]
[1724462380658,9.30548605,2753.9,2753.3,6.05928]
[1724462380857,5.67417605,2753.9,2753.3,6.05928]
[1724462381443,6.81586571,2753.9,2753.3,6.05928]
[1724462381992,2.64225926,2754.7,2753.2,3.63202]
[1724462381993,0.41284463,2754.6,2754.1,3.63094]
[1724462382290,2.3431,2755.0,2753.9,6.05847]
[1724462382291,3.63018,2754.7,2753.9,6.05847]
[1724462382495,3.63075,2754.3,2753.7,3.63137]
[1724462383002,3.63108,2754.0,2753.4,3.0]
[1724462383181,3.63108,2754.0,2753.4,6.63186]
[1724462384190,5.97395,2754.2,2753.5,3.63172]
[1724462384398,0.597395,2754.1,2753.5,3.63172]
[1724462384900,4.228355,2754.1,2753.5,3.63172]
[1724462385062,0.597395,2754.1,2753.5,7.26337]
[1724462385257,0.597395,2754.1,2753.6,3.6316]
[1724462387289,4.228365,2754.1,2753.4,3.63176]
[1724462387453,1.0202315,2754.0,2753.4,3.63176]
[1724462387792,4.228365,2754.1,2753.4,3.63176]
[1724462388004,0.597395,2754.1,2753.5,3.63171]
[1724462388286,0.597395,2754.1,2753.5,9.69063]
[1724462388587,0.597395,2754.1,2753.0,6.63234]
[1724462388588,3.63131,2753.9,2753.0,5.4273]
[1724462388760,3.63151,2753.7,2753.1,3.63218]
[1724462388958,3.63164,2753.6,2753.1,3.63217]
[1724462389147,2.85682909,2753.8,2752.9,3.63242]
[1724462389148,7.26361,2753.5,2752.9,3.63242]
[1724462389345,7.2636,2753.5,2752.9,3.63242]
[1724462389584,3.63187,2753.4,2752.7,9.69273]
[1724462389978,3.63202,2753.3,2752.7,6.05998]
[1724462390299,3.63202,2753.3,2752.7,3.63268]
[1724462390300,5.97512,2753.3,2752.7,3.63268]
[1724462391365,9.60722,2753.3,2752.7,3.63268]
[1724462391589,9.60722,2753.3,2752.3,7.26651]
[1724462391590,3.63236,2753.1,2752.3,7.26651]
[1724462391891,3.63236,2753.1,2752.3,3.63324]
[1724462391892,4.76877531,2753.1,2752.3,3.63324]
[1724462392261,2.3431,2752.3,2751.6,0.76036561]
[1724462392460,2.3431,2752.3,2751.2,3.63475]
[1724462392461,3.63372,2752.0,2751.2,3.63475]
[1724462392709,3.63387,2751.9,2751.1,6.06215]
[1724462392849,1.13641531,2752.0,2751.1,2.4273]
[1724462393046,1.50598088,2752.1,2751.3,3.63453]
[1724462393247,4.76988531,2752.2,2751.5,3.63432]
[1724462393508,1.13641531,2752.3,2751.4,6.06179]
[1724462393723,2.64239619,2752.5,2751.9,3.63376]
[1724462393997,1.13641531,2752.5,2751.7,3.63409]
[1724462394204,4.76948531,2752.5,2751.7,3.63409]
[1724462394405,3.63307,2752.5,2751.7,3.63409]
[1724462394565,1.13641531,2752.7,2751.6,2.4273]
[1724462394771,1.13641531,2752.8,2752.1,3.63358]
[1724462394964,7.48164088,2752.9,2752.1,6.06088]
[1724462394965,7.11207531,2752.9,2752.1,6.06088]
[1724462395296,4.76894531,2752.9,2752.1,6.06087]
[1724462395465,1.13641531,2752.9,2752.1,6.06087]
[1724462395675,1.13641531,2753.0,2752.3,3.63321]
[1724462395851,3.63253,2752.9,2752.1,6.06087]
[1724462396210,3.63231,2753.1,2752.3,3.63331]
[1724462396389,8.07238731,2753.2,2752.3,3.63331]
[1724462397015,3.63187,2753.4,2752.3,3.63331]
[1724462397016,1.13641531,2753.4,2752.3,3.63319]
[1724462397152,1.13641531,2753.4,2752.2,6.06074]
[1724462397153,3.63214,2753.2,2752.2,6.06074]
[1724462397354,3.63202,2753.3,2752.5,3.63304]
[1724462397707,3.63202,2753.3,2752.3,3.63331]
[1724462397708,3.63239,2753.1,2752.3,3.63331]
[1724462397886,3.63239,2753.1,2752.4,0.606061]
[1724462399280,3.63229,2753.1,2752.4,0.606061]
[1724462399600,3.63244,2753.0,2752.3,3.63331]
[1724462399906,3.63244,2753.0,2752.2,2.4273]
[1724462400397,3.63244,2753.0,2752.2,6.06071]
[1724462400755,3.63253,2752.9,2752.2,6.06071]
[1724462402116,2.4802,2752.8,2752.2,3.63341]
[1724462402421,2.4802,2752.8,2752.2,3.996751]
[1724462402575,3.63253,2752.9,2752.2,3.996751]
[1724462402775,3.63253,2752.9,2752.3,3.63331]
[1724462403070,3.63253,2752.9,2752.2,0.363341]
[1724462403071,7.45,2753.1,2752.5,2.3372]
[1724462403284,7.45,2753.1,2752.7,3.63279]
[1724462403486,4.76846531,2753.3,2752.7,4.229789]
[1724462403704,7.45,2753.4,2752.7,4.229789]
[1724462403918,11.08191,2753.4,2752.7,4.229789]
[1724462404118,7.45,2753.4,2752.8,3.63266]
[1724462404425,7.45,2753.4,2752.9,3.63251]
[1724462405202,7.45,2753.4,2752.7,0.596999]
[1724462405402,3.63201,2753.3,2752.7,0.596999]
[1724462407028,3.63201,2753.3,2752.7,4.229789]
[1724462407202,7.45,2753.4,2752.8,4.4189119]
[1724462407404,7.45,2753.4,2753.0,2.3372]
[1724462407830,3.63177,2753.5,2753.0,2.3372]
[1724462408178,7.45,2753.7,2753.2,3.63212]
[1724462408434,7.61719088,2754.1,2753.5,2.3372]
[1724462408435,11.08101,2754.1,2753.5,2.3372]
[1724462409024,3.63101,2754.1,2753.5,2.3372]
[1724462409236,3.63101,2754.1,2753.5,2.934105]
[1724462410302,3.63071,2754.3,2753.6,3.6316]
[1724462410695,3.63071,2754.3,2753.5,2.934105]
[1724462411000,7.45,2754.4,2753.8,3.63133]
[1724462411201,7.45,2754.4,2754.0,2.3372]
[1724462411439,7.45,2754.4,2754.0,5.96828]
[1724462411883,7.45,2754.4,2754.1,3.63094]
[1724462412791,7.45,2754.4,2754.0,5.96826]
[1724462412991,7.45,2754.4,2754.1,0.596826]
[1724462413507,7.45,2754.4,2753.6,5.96878]
[1724462413815,7.45,2754.4,2753.7,3.63142]
[1724462414024,7.45,2754.4,2753.9,3.63113]
[1724462415249,11.08068,2754.4,2753.7,3.63142]
[1724462415450,11.08068,2754.4,2753.7,7.26281]
[1724462415749,3.6307,2754.3,2753.7,4.591391]
[1724462416736,3.63082,2754.2,2753.7,4.591391]
[1724462416891,3.6307,2754.3,2753.7,4.591391]
[1724462417515,7.26149,2754.3,2753.7,4.591391]
[1724462417939,7.26149,2754.3,2753.7,3.63139]
[1724462418240,3.6307,2754.3,2753.7,3.63137]
[1724462418467,7.45,2754.4,2753.8,3.63132]
[1724462418844,7.45,2754.4,2753.9,3.63113]
[1724462419017,7.45,2754.4,2754.1,2.307]
[1724462419421,7.45,2754.4,2754.1,5.93794]
[1724462419666,7.45,2754.4,2754.2,3.63081]
[1724462419849,3.6302,2754.7,2754.2,3.63081]
[1724462420184,1.13641531,2755.0,2754.4,3.63054]
[1724462420465,3.62967,2755.1,2754.2,3.6308]
[1724462420767,3.63001,2754.9,2754.2,3.6308]
[1724462420985,7.26003,2754.9,2754.3,0.6894701]
[1724462421189,3.63001,2754.9,2754.3,0.6894701]
[1724462421350,3.63001,2754.9,2754.1,3.263901]
[1724462421351,3.63017,2754.7,2754.1,5.93793]
[1724462421681,3.63017,2754.7,2754.1,2.307]
[1724462421890,7.26045,2754.7,2754.1,2.307]
[1724462422180,3.6305,2754.5,2753.9,3.63115]
[1724462422385,3.63019,2754.7,2754.0,3.63106]
[1724462422591,7.25992,2754.9,2754.0,3.63106]
[1724462422788,7.25992,2754.9,2754.2,3.63081]
[1724462423081,3.62993,2754.9,2754.2,3.63081]
[1724462423279,3.62993,2754.9,2754.2,4.587697]
[1724462423447,3.62965,2755.1,2754.2,4.587697]
[1724462423780,3.62977,2755.0,2754.3,3.63059]
[1724462423947,3.62992,2754.9,2754.2,4.587637]
[1724462424149,3.62992,2754.9,2754.2,4.587617]
[1724462424351,3.63017,2754.7,2754.1,5.93794]
[1724462425639,3.62992,2754.9,2754.3,3.63066]
[1724462425953,3.62992,2754.9,2754.3,7.26125]
[1724462426484,3.62992,2754.9,2754.3,3.63059]
[1724462427182,3.62967,2755.1,2754.3,3.63059]
[1724462427488,3.62967,2755.1,2754.5,3.63033]
[1724462427833,11.07943,2755.3,2754.5,3.63033]
[1724462428038,14.70891,2755.3,2754.7,3.63013]
[1724462428469,3.6295,2755.2,2754.7,3.63013]
[1724462428669,3.6295,2755.2,2754.5,3.63033]
[1724462428903,3.6295,2755.2,2754.5,4.6234309]
[1724462429190,3.62966,2755.1,2754.5,4.6234309]
[1724462429344,7.25939,2755.1,2754.5,3.63033]
[1724462429543,3.62966,2755.1,2754.5,3.63033]
[1724462430295,3.62966,2755.1,2754.5,7.26067]
[1724462430791,3.62966,2755.1,2754.5,3.63033]
[1724462430998,3.62966,2755.1,2754.5,7.26067]
[1724462431199,3.62966,2755.1,2754.5,4.6234029]
[1724462431360,11.07941,2755.3,2754.6,2.307]
[1724462431559,0.07345369,2755.2,2754.7,3.63006]
[1724462432380,3.70302369,2755.2,2754.6,2.307]
[1724462432691,3.70302369,2755.2,2754.6,5.93724]
[1724462432991,3.70302369,2755.2,2754.6,6.99330229]
[1724462434386,3.62963,2755.1,2754.6,3.36306229]
[1724462434689,3.70319524,2755.1,2754.6,3.36306229]
[1724462435256,0.07356524,2755.1,2754.6,3.36306229]
[1724462435462,11.07941,2755.3,2754.7,4.32941723]
[1724462435685,0.07352503,2755.0,2754.7,7.95949723]
[1724462435994,0.07352503,2755.0,2754.7,4.32941723]
[1724462436167,0.07350321,2754.9,2754.7,4.32941723]
[1724462436556,11.07941,2755.3,2754.7,4.32941723]
[1724462436862,11.07941,2755.3,2754.7,3.63008]
[1724462437111,0.07362385,2755.2,2754.7,3.63008]
[1724462437604,0.07362385,2755.2,2754.8,3.63]
[1724462437747,0.07362385,2755.2,2754.6,5.93717]
[1724462437948,0.07177892,2755.1,2754.6,2.307]
[1724462438298,11.07941,2755.3,2754.7,4.223884]
[1724462438503,0.07173871,2755.0,2754.7,4.223884]
[1724462438643,11.07941,2755.3,2754.7,7.853954]
[1724462438846,0.07169849,2754.9,2754.7,7.853954]
[1724462439107,11.07941,2755.3,2754.7,7.853954]
[1724462439299,0.07166287,2754.8,2754.7,4.223804]
[1724462439471,11.07941,2755.3,2754.7,4.223804]
[1724462439790,0.07166287,2754.8,2754.7,3.63007]
[1724462439995,11.07941,2755.3,2754.7,3.63007]
[1724462440782,0.07182833,2755.2,2754.7,3.63007]
[1724462441653,0.07182833,2755.2,2754.8,3.63]